[Event "Romanian-ch Youth Girls U12 2024"]
[Site "Eforie Nord"]
[Date "2024.04.12"]
[Round "1.1"]
[White "Ruja, Irina"]
[Black "Sunea, Sara Maria"]
[Result "0-1"]
[ECO "A65"]
[WhiteElo "1492"]
[BlackElo "1798"]
[Annotator "NA RC COMBH"]
[PlyCount "88"]
[EventDate "2024.04.10"]
[EventType "swiss"]
[EventCountry "ROU"]
[SourceTitle "playchess.com"]
[Source "ChessBase"]
[SourceQuality "1"]
[TimeControl "5400+30"]

1. d4 {[%emt 0:00:02]} Nf6 {[%emt 0:00:08]} 2. c4 {[%emt 0:00:08]} c5 {[%emt 0:00:04]} 3. d5 {[%emt 0:00:06]} e6 {[%emt 0:00:05]} 4. Nc3 {[%emt 0:00:15]} exd5 {[%emt 0:00:04]} 5. cxd5 {[%emt 0:00:13]} d6 {[%emt 0:00:03]} 6. e4 {[%emt 0:00:21]} g6 {[%emt 0:00:05]} 7. Bg5 {[%emt 0:00:37]} Bg7 {[%emt 0:02:02]} 8. Qc2 {[%emt 0:03:10]} O-O {[%emt 0:01:19]} 9. Be2 {[%emt 0:01:29]} Re8 {[%emt 0:05:20]} 10. Nf3 {[%emt 0:01:55]} Bg4 {[%emt 0:02:30]} 11. O-O {[%emt 0:03:04]} Bxf3 {[%emt 0:00:12]} 12. Bxf3 {[%emt 0:00:28]} Nbd7 {[%emt 0:00:03]} 13. Rfe1 {[%emt 0:02:06]} Rb8 {[%emt 0:05:01]} 14. Be2 {[%emt 0:10:58]} a6 {[%emt 0:01:37]} 15. a4 {[%emt 0:02:44]} Qc7 {[%emt 0:02:11]} 16. f3 {[%emt 0:04:51]} c4 {[%emt 0:08:05]} 17. Rec1 {[%emt 0:16:40]} b5 {[%emt 0:02:25]} 18. axb5 {[%emt 0:00:43]} axb5 {[%emt 0:00:02]} 19. h3 {[%emt 0:06:20]} Nc5 {[%emt 0:01:19]} 20. Rd1 {[%emt 0:07:44]} Nfd7 {[%emt 0:00:55]} 21. Be3 {[%emt 0:04:52]} Rec8 {[%emt 0:07:19]} 22. Na2 {[%emt 0:14:56]} Nb3 {[%emt 0:04:41]} 23. Rab1 {[%emt 0:01:26]} Qa5 {[%emt 0:08:32]} 24. Nc1 {[%emt 0:02:38]} Ndc5 {[%emt 0:12:45]} 25. Bxc5 {[%emt 0:05:01]} Nxc5 {[%emt 0:04:48]} 26. b4 {[%emt 0:02:11]} Qa4 {[%emt 0:01:59]} 27. Qxa4 {[%emt 0:00:37]} Nxa4 {[%emt 0:00:02]} 28. Na2 {[%emt 0:02:48]} c3 {[%emt 0:03:20]} 29. Rb3 {[%emt 0:02:44]} c2 {[%emt 0:01:23]} 30. Rf1 {[%emt 0:00:41]} Nc3 {[%emt 0:06:35]} 31. Nc1 {[%emt 0:02:04]} Ra8 {[%emt 0:01:40]} 32. Bd3 {[%emt 0:01:12]} Na2 {[%emt 0:01:19]} 33. f4 {[%emt 0:00:49]} Nxc1 {[%emt 0:02:09]} 34. Rxc1 {[%emt 0:00:13]} Ra1 {[%emt 0:00:04]} 35. Rxa1 {[%emt 0:00:32]} Bxa1 {[%emt 0:00:03]} 36. Bxc2 {[%emt 0:00:13]} Rxc2 {[%emt 0:00:02]} 37. Ra3 {[%emt 0:00:23]} Bd4+ {[%emt 0:00:05]} 38. Kh2 {[%emt 0:00:09]} Rb2 {[%emt 0:01:41]} 39. Ra8+ {[%emt 0:00:37]} Kg7 {[%emt 0:00:05]} 40. Rd8 {[%emt 0:00:10]} g5 {[%emt 0:01:24]} 41. Rxd6 {[%emt 0:01:16]} gxf4 {[%emt 0:00:06]} 42. h4 {[%emt 0:00:35]} f3 {[%emt 0:00:14]} 43. Kh3 {[%emt 0:00:20]} fxg2 {[%emt 0:00:26]} 44. h5 {[%emt 0:00:30]} h6 {[%emt 0:00:48]} 0-1

[Event "Romanian-ch Youth Girls U12 2024"]
[Site "Eforie Nord"]
[Date "2024.04.12"]
[Round "1.2"]
[White "Zamfirache, Amalia-Maria"]
[Black "Gheorghiu, Theodora Maria"]
[Result "1-0"]
[ECO "D00"]
[WhiteElo "1725"]
[BlackElo "1477"]
[Annotator "NA RC COMBH"]
[PlyCount "121"]
[EventDate "2024.04.10"]
[EventType "swiss"]
[EventCountry "ROU"]
[SourceTitle "playchess.com"]
[Source "ChessBase"]
[SourceQuality "1"]
[TimeControl "5400+30"]

1. d4 {[%emt 0:00:06]} d5 {[%emt 0:00:10]} 2. Bf4 {[%emt 0:00:17]} e6 {[%emt 0:00:27]} 3. e3 {[%emt 0:00:16]} Nf6 {[%emt 0:00:35]} 4. Qf3 {[%emt 0:00:59]} h6 {[%emt 0:02:05]} 5. Nc3 {[%emt 0:01:46]} Bb4 {[%emt 0:02:17]} 6. Nge2 {[%emt 0:01:16]} c5 {[%emt 0:02:39]} 7. O-O-O {[%emt 0:02:19]} Qb6 {[%emt 0:05:45]} 8. g4 {[%emt 0:12:15]} Nc6 {[%emt 0:14:13]} 9. Qg3 {[%emt 0:18:47]} a6 {[%emt 0:19:23]} 10. h4 {[%emt 0:01:16]} Nd7 {[%emt 0:07:01]} 11. Bg2 {[%emt 0:04:31]} Bxc3 {[%emt 0:04:05]} 12. Nxc3 {[%emt 0:00:22]} Ne7 {[%emt 0:14:26]} 13. h5 {[%emt 0:04:35]} c4 {[%emt 0:14:25]} 14. Bh3 {[%emt 0:06:15]} Rg8 {[%emt 0:01:39]} 15. g5 {[%emt 0:00:55]} hxg5 {[%emt 0:00:45]} 16. Bxg5 {[%emt 0:02:08]} Nf8 {[%emt 0:01:42]} 17. Bxe7 {[%emt 0:04:36]} Kxe7 {[%emt 0:00:20]} 18. Qe5 {[%emt 0:00:31]} Qd6 {[%emt 0:00:52]} 19. Qg5+ {[%emt 0:00:57]} f6 {[%emt 0:00:31]} 20. Qg2 {[%emt 0:00:07]} Kf7 {[%emt 0:00:33]} 21. Rdg1 {[%emt 0:00:45]} Nh7 {[%emt 0:02:27]} 22. Qg6+ {[%emt 0:00:20]} Kf8 {[%emt 0:00:09]} 23. Qxh7 {[%emt 0:00:10]} b5 {[%emt 0:00:39]} 24. Qg6 {[%emt 0:00:44]} Bd7 {[%emt 0:00:28]} 25. h6 {[%emt 0:00:20]} Be8 {[%emt 0:00:23]} 26. hxg7+ {[%emt 0:00:19]} Ke7 {[%emt 0:00:07]} 27. Qg3 {[%emt 0:00:39]} Qb6 {[%emt 0:01:06]} 28. Ne2 {[%emt 0:01:17]} b4 {[%emt 0:00:22]} 29. Nf4 {[%emt 0:00:08]} Bf7 {[%emt 0:00:13]} 30. Qg4 {[%emt 0:09:33]} Qd6 {[%emt 0:02:02]} 31. Qg3 {[%emt 0:02:13]} Qb6 {[%emt 0:01:47]} 32. Qg4 {[%emt 0:03:54]} Qd6 {[%emt 0:00:36]} 33. Qh4 {[%emt 0:00:03]} Rab8 {[%emt 0:01:10]} 34. Ng6+ {[%emt 0:00:11]} Bxg6 {[%emt 0:00:18]} 35. Rxg6 {[%emt 0:00:08]} e5 {[%emt 0:00:37]} 36. dxe5 {[%emt 0:00:29]} Qxe5 {[%emt 0:00:17]} 37. Qd4 {[%emt 0:00:19]} Qxd4 {[%emt 0:00:31]} 38. exd4 {[%emt 0:00:01]} Kf7 {[%emt 0:00:21]} 39. Rhg1 {[%emt 0:00:08]} b3 {[%emt 0:00:14]} 40. axb3 {[%emt 0:00:08]} cxb3 {[%emt 0:00:06]} 41. c3 {[%emt 0:00:13]} Rbe8 {[%emt 0:00:22]} 42. Kd2 {[%emt 0:00:10]} Re4 {[%emt 0:00:27]} 43. R6g4 {[%emt 0:00:31]} f5 {[%emt 0:00:52]} 44. Rg5 {[%emt 0:01:46]} Rf4 {[%emt 0:01:20]} 45. Rxf5+ {[%emt 0:00:10]} Rxf5 {[%emt 0:00:05]} 46. Bxf5 {[%emt 0:00:05]} Rxg7 {[%emt 0:00:08]} 47. Rxg7+ {[%emt 0:00:08]} Kxg7 {[%emt 0:00:09]} 48. Be6 {[%emt 0:00:04]} Kf6 {[%emt 0:00:22]} 49. Bxd5 {[%emt 0:00:06]} Kf5 {[%emt 0:00:11]} 50. Bxb3 {[%emt 0:00:11]} Kf4 {[%emt 0:00:04]} 51. c4 {[%emt 0:00:06]} Ke4 {[%emt 0:00:09]} 52. c5 {[%emt 0:00:07]} Kxd4 {[%emt 0:00:08]} 53. c6 {[%emt 0:00:10]} Kc5 {[%emt 0:00:11]} 54. c7 {[%emt 0:00:08]} Kc6 {[%emt 0:00:06]} 55. c8=Q+ {[%emt 0:00:06]} Kb5 {[%emt 0:00:03]} 56. Qc4+ {[%emt 0:00:19]} Kb6 {[%emt 0:00:14]} 57. f4 {[%emt 0:00:45]} Kb7 {[%emt 0:00:10]} 58. f5 {[%emt 0:00:06]} Kb6 {[%emt 0:00:04]} 59. f6 {[%emt 0:00:08]} Kb7 {[%emt 0:00:14]} 60. f7 {[%emt 0:00:08]} Kb8 {[%emt 0:00:05]} 61. f8=R+ {[%emt 0:00:16]} 1-0

[Event "Romanian-ch Youth Girls U12 2024"]
[Site "Eforie Nord"]
[Date "2024.04.13"]
[Round "2.1"]
[White "Sunea, Sara Maria"]
[Black "Dospin, Nicola-Diana"]
[Result "1-0"]
[ECO "D53"]
[WhiteElo "1798"]
[BlackElo "1601"]
[Annotator "NA RC COMBH"]
[PlyCount "119"]
[EventDate "2024.04.10"]
[EventType "swiss"]
[EventCountry "ROU"]
[SourceTitle "playchess.com"]
[Source "ChessBase"]
[SourceQuality "1"]
[TimeControl "5400+30"]

1. d4 {[%emt 0:00:03]} d5 {[%emt 0:00:12]} 2. Bf4 {[%emt 0:00:04]} Nf6 {[%emt 0:00:12]} 3. e3 {[%emt 0:00:06]} Nc6 {[%emt 0:01:17]} 4. c4 {[%emt 0:00:47]} e6 {[%emt 0:00:20]} 5. Nc3 {[%emt 0:00:05]} Bd6 {[%emt 0:02:37]} 6. Bg5 {[%emt 0:00:05]} Be7 {[%emt 0:04:59]} 7. Nf3 {[%emt 0:01:50]} O-O {[%emt 0:03:32]} 8. Bd3 {[%emt 0:01:24]} b6 {[%emt 0:06:36]} 9. O-O {[%emt 0:04:31]} Bb7 {[%emt 0:00:26]} 10. cxd5 {[%emt 0:04:31]} Nxd5 {[%emt 0:08:44]} 11. Nxd5 {[%emt 0:06:35]} exd5 {[%emt 0:01:04]} 12. Bf4 {[%emt 0:01:40]} Re8 {[%emt 0:02:24]} 13. Ne5 {[%emt 0:01:49]} Nxe5 {[%emt 0:15:46]} 14. Bxe5 {[%emt 0:01:23]} Bd6 {[%emt 0:05:03]} 15. Bxd6 {[%emt 0:02:52]} Qxd6 {[%emt 0:00:19]} 16. Qc2 {[%emt 0:00:18]} g6 {[%emt 0:05:09]} 17. Rac1 {[%emt 0:01:25]} Rac8 {[%emt 0:00:45]} 18. Qa4 {[%emt 0:01:54]} a5 {[%emt 0:03:53]} 19. Rc3 {[%emt 0:03:32]} Red8 {[%emt 0:05:04]} 20. Rfc1 {[%emt 0:02:38]} Qd7 {[%emt 0:08:50]} 21. Bb5 {[%emt 0:03:37]} Qe7 {[%emt 0:03:38]} 22. Qc2 {[%emt 0:01:34]} Qb4 {[%emt 0:03:58]} 23. Be2 {[%emt 0:06:15]} Qf8 {[%emt 0:02:19]} 24. Qb3 {[%emt 0:03:15]} Qe7 {[%emt 0:02:25]} 25. a3 {[%emt 0:04:57]} Qd6 {[%emt 0:02:08]} 26. g3 {[%emt 0:08:23]} Rd7 {[%emt 0:01:43]} 27. Qc2 {[%emt 0:05:17]} c6 {[%emt 0:02:32]} 28. Qb3 {[%emt 0:01:08]} a4 {[%emt 0:06:41]} 29. Qxb6 {[%emt 0:03:17]} Rdc7 {[%emt 0:00:51]} 30. Rc5 {[%emt 0:01:43]} Qe6 {[%emt 0:00:41]} 31. Bf3 {[%emt 0:00:34]} Qd7 {[%emt 0:00:53]} 32. Bxd5 {[%emt 0:04:27]} Qe8 {[%emt 0:00:38]} 33. Bg2 {[%emt 0:00:56]} Qe6 {[%emt 0:00:30]} 34. Qb4 {[%emt 0:02:58]} Qd7 {[%emt 0:00:27]} 35. Qxa4 {[%emt 0:00:32]} Ra8 {[%emt 0:01:24]} 36. Qc2 {[%emt 0:00:38]} Rac8 {[%emt 0:00:00]} 37. b4 {[%emt 0:01:28]} Qd6 {[%emt 0:00:16]} 38. d5 {[%emt 0:00:46]} Qe7 {[%emt 0:00:36]} 39. dxc6 {[%emt 0:00:46]} Ba8 {[%emt 0:00:11]} 40. b5 {[%emt 0:00:26]} Rb8 {[%emt 0:00:37]} 41. a4 {[%emt 0:00:09]} Qd6 {[%emt 0:00:33]} 42. a5 {[%emt 0:01:44]} Bxc6 {[%emt 0:00:24]} 43. Bxc6 {[%emt 0:00:19]} Ra7 {[%emt 0:00:17]} 44. b6 {[%emt 0:00:28]} Ra6 {[%emt 0:00:12]} 45. Bg2 {[%emt 0:00:49]} Rxa5 {[%emt 0:01:17]} 46. Rxa5 {[%emt 0:00:07]} Qxb6 {[%emt 0:00:07]} 47. Ra8 {[%emt 0:00:10]} Rxa8 {[%emt 0:00:21]} 48. Bxa8 {[%emt 0:00:02]} Kg7 {[%emt 0:00:22]} 49. Qc3+ {[%emt 0:00:08]} Kh6 {[%emt 0:00:27]} 50. Bd5 {[%emt 0:00:16]} f5 {[%emt 0:00:34]} 51. Qd2 {[%emt 0:00:19]} Kg7 {[%emt 0:00:18]} 52. Qd4+ {[%emt 0:00:05]} Qxd4 {[%emt 0:00:31]} 53. exd4 {[%emt 0:00:01]} Kf6 {[%emt 0:00:16]} 54. Rc6+ {[%emt 0:00:05]} Ke7 {[%emt 0:00:11]} 55. Bg8 {[%emt 0:00:11]} Kd7 {[%emt 0:00:09]} 56. d5 {[%emt 0:00:05]} h6 {[%emt 0:00:41]} 57. Rxg6 {[%emt 0:00:06]} Ke8 {[%emt 0:00:16]} 58. Be6 {[%emt 0:00:12]} h5 {[%emt 0:00:17]} 59. d6 {[%emt 0:00:04]} Kd8 {[%emt 0:00:27]} 60. Rg8# {[%emt 0:24:41]} 1-0

[Event "Romanian-ch Youth Girls U12 2024"]
[Site "Eforie Nord"]
[Date "2024.04.13"]
[Round "2.2"]
[White "Cristurean, Noelia-Alexandra"]
[Black "Zamfirache, Amalia-Maria"]
[Result "0-1"]
[ECO "B13"]
[WhiteElo "1589"]
[BlackElo "1725"]
[Annotator "NA RC COMBH"]
[PlyCount "92"]
[EventDate "2024.04.10"]
[EventType "swiss"]
[EventCountry "ROU"]
[SourceTitle "playchess.com"]
[Source "ChessBase"]
[SourceQuality "1"]
[TimeControl "5400+30"]

1. e4 {[%emt 0:00:04]} c6 {[%emt 0:00:20]} 2. d4 {[%emt 0:00:21]} d5 {[%emt 0:00:08]} 3. exd5 {[%emt 0:00:34]} cxd5 {[%emt 0:00:06]} 4. Bf4 {[%emt 0:00:14]} Nf6 {[%emt 0:00:25]} 5. c3 {[%emt 0:01:26]} Bf5 {[%emt 0:04:08]} 6. Nd2 {[%emt 0:03:40]} e6 {[%emt 0:06:05]} 7. Ngf3 {[%emt 0:01:41]} Bd6 {[%emt 0:02:13]} 8. Ne5 {[%emt 0:05:10]} O-O {[%emt 0:03:10]} 9. Be2 {[%emt 0:01:28]} Nc6 {[%emt 0:01:03]} 10. Ndf3 {[%emt 0:05:54]} Rb8 {[%emt 0:03:18]} 11. O-O {[%emt 0:01:01]} Qc7 {[%emt 0:04:33]} 12. Re1 {[%emt 0:03:18]} Ne4 {[%emt 0:14:56]} 13. h3 {[%emt 0:05:35]} f6 {[%emt 0:17:42]} 14. Nxc6 {[%emt 0:02:36]} bxc6 {[%emt 0:01:21]} 15. Bxd6 {[%emt 0:01:15]} Qxd6 {[%emt 0:00:46]} 16. Qc1 {[%emt 0:01:54]} c5 {[%emt 0:02:00]} 17. Bd3 {[%emt 0:05:10]} c4 {[%emt 0:02:03]} 18. Bxe4 {[%emt 0:01:40]} Bxe4 {[%emt 0:00:10]} 19. Re3 {[%emt 0:03:54]} Qb6 {[%emt 0:00:54]} 20. Nd2 {[%emt 0:03:25]} f5 {[%emt 0:03:49]} 21. f3 {[%emt 0:02:33]} f4 {[%emt 0:00:10]} 22. Re1 {[%emt 0:00:42]} Bf5 {[%emt 0:00:10]} 23. b3 {[%emt 0:02:26]} cxb3 {[%emt 0:01:33]} 24. axb3 {[%emt 0:01:46]} Rb7 {[%emt 0:01:21]} 25. Ra4 {[%emt 0:02:02]} Qd8 {[%emt 0:00:29]} 26. Qa1 {[%emt 0:01:37]} Qg5 {[%emt 0:00:09]} 27. Kh1 {[%emt 0:01:48]} Qe7 {[%emt 0:02:08]} 28. Qa2 {[%emt 0:02:47]} Qc7 {[%emt 0:02:04]} 29. Rc1 {[%emt 0:01:13]} Rf6 {[%emt 0:02:18]} 30. Ra5 {[%emt 0:01:26]} Rh6 {[%emt 0:05:43]} 31. Rc5 {[%emt 0:02:33]} Qe7 {[%emt 0:01:34]} 32. Nf1 {[%emt 0:01:16]} Rc7 {[%emt 0:03:01]} 33. Ra5 {[%emt 0:01:30]} Rg6 {[%emt 0:02:50]} 34. Nh2 {[%emt 0:04:36]} h5 {[%emt 0:14:50]} 35. Qb2 Rf6 36. Rca1 Rf8 37. R1a3 Rfc8 38. b4 e5 39. Nf1 exd4 40. cxd4 Rc2 41. Qb3 Qe2 42. Ne3 fxe3 43. Qxd5+ Kh8 44. f4 Bg6 {[%emt 0:00:00]} 45. f5 {[%emt 0:11:28]} Bxf5 {[%emt 0:00:00]} 46. Rxa7 {[%emt 0:08:27]} Bxh3 {[%emt 0:00:00]} 0-1

[Event "Romanian-ch Youth Girls U12 2024"]
[Site "Eforie Nord"]
[Date "2024.04.13"]
[Round "3.1"]
[White "Cretescu, Emma"]
[Black "Sunea, Sara Maria"]
[Result "1/2-1/2"]
[ECO "D05"]
[WhiteElo "1689"]
[BlackElo "1798"]
[Annotator "NA RC COMBH"]
[PlyCount "74"]
[EventDate "2024.04.10"]
[EventType "swiss"]
[EventCountry "ROU"]
[SourceTitle "playchess.com"]
[Source "ChessBase"]
[SourceQuality "1"]
[TimeControl "5400+30"]

1. d4 {[%emt 0:00:03]} Nf6 {[%emt 0:00:08]} 2. Nf3 {[%emt 0:00:18]} e6 {[%emt 0:00:06]} 3. e3 {[%emt 0:00:14]} d5 {[%emt 0:00:05]} 4. Bd3 {[%emt 0:00:12]} c5 {[%emt 0:00:04]} 5. b3 {[%emt 0:00:12]} Be7 {[%emt 0:00:06]} 6. Bb2 {[%emt 0:00:19]} O-O {[%emt 0:00:05]} 7. O-O {[%emt 0:00:18]} b6 {[%emt 0:00:02]} 8. Nbd2 {[%emt 0:01:16]} Ba6 {[%emt 0:00:19]} 9. Bxa6 {[%emt 0:10:31]} Nxa6 {[%emt 0:00:02]} 10. c4 {[%emt 0:02:45]} Rc8 {[%emt 0:03:37]} 11. a3 {[%emt 0:06:56]} Nb8 {[%emt 0:09:18]} 12. Rc1 {[%emt 0:04:11]} dxc4 {[%emt 0:04:21]} 13. Nxc4 {[%emt 0:03:13]} Nc6 {[%emt 0:04:33]} 14. dxc5 {[%emt 0:02:31]} Bxc5 {[%emt 0:00:41]} 15. b4 {[%emt 0:01:20]} Be7 {[%emt 0:03:17]} 16. Qa4 {[%emt 0:05:45]} Ne4 {[%emt 0:18:10]} 17. Rfd1 {[%emt 0:22:02]} Qe8 {[%emt 0:00:53]} 18. Nd4 {[%emt 0:07:50]} Nxd4 {[%emt 0:07:48]} 19. Qxe8 {[%emt 0:00:24]} Rfxe8 {[%emt 0:00:39]} 20. Rxd4 {[%emt 0:05:56]} Nf6 {[%emt 0:07:43]} 21. Rdd1 {[%emt 0:05:27]} h6 {[%emt 0:05:50]} 22. Ne5 {[%emt 0:02:25]} Rxc1 {[%emt 0:14:09]} 23. Rxc1 {[%emt 0:00:11]} Bd6 {[%emt 0:00:15]} 24. Nc6 {[%emt 0:06:20]} a6 {[%emt 0:01:32]} 25. Be5 {[%emt 0:01:18]} Bxe5 {[%emt 0:01:07]} 26. Nxe5 {[%emt 0:00:03]} Nd5 {[%emt 0:03:26]} 27. e4 {[%emt 0:01:20]} Nf4 {[%emt 0:01:40]} 28. Rc6 {[%emt 0:10:37]} Rd8 {[%emt 0:01:06]} 29. h3 {[%emt 0:00:19]} Rd1+ {[%emt 0:00:49]} 30. Kh2 {[%emt 0:00:02]} Ra1 {[%emt 0:00:25]} 31. Rxb6 {[%emt 0:00:15]} Rxa3 {[%emt 0:00:02]} 32. Rb8+ {[%emt 0:00:33]} Kh7 {[%emt 0:00:02]} 33. Nxf7 {[%emt 0:00:28]} Nd3 {[%emt 0:01:49]} 34. f3 {[%emt 0:00:53]} Rb3 {[%emt 0:00:25]} 35. Rb6 {[%emt 0:00:42]} Nxb4 {[%emt 0:01:38]} 36. Rxe6 {[%emt 0:00:22]} a5 {[%emt 0:00:26]} 37. Re8 {[%emt 0:00:29]} a4 {[%emt 0:12:22]} 1/2-1/2

[Event "Romanian-ch Youth Girls U12 2024"]
[Site "Eforie Nord"]
[Date "2024.04.13"]
[Round "3.2"]
[White "Zamfirache, Amalia-Maria"]
[Black "Sabou, Stefania Theodora"]
[Result "1/2-1/2"]
[ECO "B22"]
[WhiteElo "1725"]
[BlackElo "1612"]
[Annotator "NA RC COMBH"]
[PlyCount "58"]
[EventDate "2024.04.10"]
[EventType "swiss"]
[EventCountry "ROU"]
[SourceTitle "playchess.com"]
[Source "ChessBase"]
[SourceQuality "1"]
[TimeControl "5400+30"]

1. e4 {[%emt 0:00:09]} c5 {[%emt 0:00:12]} 2. c3 {[%emt 0:00:19]} d5 {[%emt 0:00:20]} 3. exd5 {[%emt 0:00:23]} Qxd5 {[%emt 0:00:08]} 4. d4 {[%emt 0:00:25]} cxd4 {[%emt 0:00:21]} 5. cxd4 {[%emt 0:00:15]} Nc6 {[%emt 0:00:09]} 6. Nf3 {[%emt 0:00:38]} e5 {[%emt 0:00:34]} 7. dxe5 {[%emt 0:01:28]} Qxd1+ {[%emt 0:00:11]} 8. Kxd1 {[%emt 0:00:06]} Nge7 {[%emt 0:00:04]} 9. Nc3 {[%emt 0:02:06]} Bg4 {[%emt 0:00:55]} 10. Be3 {[%emt 0:11:34]} Bxf3+ {[%emt 0:06:10]} 11. gxf3 {[%emt 0:00:13]} Nxe5 {[%emt 0:01:34]} 12. Be2 {[%emt 0:02:02]} O-O-O+ {[%emt 0:02:32]} 13. Kc2 {[%emt 0:00:21]} N7c6 {[%emt 0:00:16]} 14. a3 {[%emt 0:00:35]} a6 {[%emt 0:02:15]} 15. Rad1 {[%emt 0:04:36]} Bd6 {[%emt 0:04:13]} 16. Nd5 {[%emt 0:18:30]} Bc7 {[%emt 0:02:19]} 17. Kb1 {[%emt 0:07:57]} Ng6 {[%emt 0:01:23]} 18. Rd2 {[%emt 0:09:45]} Nge7 {[%emt 0:02:55]} 19. Rhd1 {[%emt 0:01:49]} Nxd5 {[%emt 0:04:12]} 20. Rxd5 {[%emt 0:00:12]} Rxd5 {[%emt 0:00:31]} 21. Rxd5 {[%emt 0:00:12]} Ne7 {[%emt 0:00:48]} 22. Rg5 {[%emt 0:06:17]} g6 {[%emt 0:00:25]} 23. h3 {[%emt 0:03:08]} Nf5 {[%emt 0:04:46]} 24. Rg1 {[%emt 0:02:51]} Re8 {[%emt 0:00:59]} 25. Bc4 {[%emt 0:01:30]} Nxe3 {[%emt 0:01:57]} 26. fxe3 {[%emt 0:00:12]} Rxe3 {[%emt 0:00:41]} 27. Bxf7 {[%emt 0:00:07]} Rxf3 {[%emt 0:01:04]} 28. Bg8 {[%emt 0:00:13]} Kb8 {[%emt 0:01:23]} 29. Bxh7 {[%emt 0:00:08]} Rxh3 {[%emt 0:00:08]} 1/2-1/2

[Event "Romanian-ch Youth Girls U12 2024"]
[Site "Eforie Nord"]
[Date "2024.04.14"]
[Round "4.1"]
[White "Dorobat, Alexia"]
[Black "Cristurean, Andreea-Nuria"]
[Result "1/2-1/2"]
[ECO "B33"]
[WhiteElo "1707"]
[BlackElo "1500"]
[Annotator "NA RC"]
[PlyCount "72"]
[EventDate "2024.04.10"]
[EventType "swiss"]
[EventCountry "ROU"]
[SourceTitle "playchess.com"]
[Source "ChessBase"]
[SourceQuality "1"]
[TimeControl "5400+30"]

1. e4 {[%emt 0:00:03]} c5 {[%emt 0:00:09]} 2. Nf3 {[%emt 0:00:19]} Nc6 {[%emt 0:00:51]} 3. d4 {[%emt 0:00:17]} cxd4 {[%emt 0:00:59]} 4. Nxd4 {[%emt 0:00:06]} Nf6 {[%emt 0:01:39]} 5. Nc3 {[%emt 0:00:08]} e5 {[%emt 0:01:24]} 6. Nf3 {[%emt 0:05:10]} Bb4 {[%emt 0:02:33]} 7. Bd3 {[%emt 0:08:08]} Bxc3+ {[%emt 0:04:02]} 8. bxc3 {[%emt 0:00:01]} d6 {[%emt 0:04:03]} 9. Nd2 {[%emt 0:08:07]} Be6 {[%emt 0:04:24]} 10. f3 {[%emt 0:04:23]} d5 {[%emt 0:05:12]} 11. Qe2 {[%emt 0:10:15]} Qc7 {[%emt 0:03:55]} 12. Nb3 {[%emt 0:05:41]} Nd7 {[%emt 0:09:16]} 13. Bd2 {[%emt 0:05:31]} d4 {[%emt 0:05:26]} 14. cxd4 {[%emt 0:01:34]} Bxb3 {[%emt 0:01:32]} 15. cxb3 {[%emt 0:03:27]} Nxd4 {[%emt 0:01:25]} 16. Qe3 {[%emt 0:04:18]} Nc5 {[%emt 0:04:22]} 17. O-O {[%emt 0:01:40]} Nxd3 {[%emt 0:01:46]} 18. Qxd3 {[%emt 0:00:02]} O-O {[%emt 0:02:24]} 19. Rac1 {[%emt 0:03:44]} Qd7 {[%emt 0:03:37]} 20. Bc3 {[%emt 0:03:34]} Rfd8 {[%emt 0:06:20]} 21. Rfd1 {[%emt 0:01:42]} Rac8 {[%emt 0:02:55]} 22. Bxd4 {[%emt 0:02:07]} exd4 {[%emt 0:01:32]} 23. Rc4 {[%emt 0:02:33]} Rxc4 {[%emt 0:02:00]} 24. Qxc4 {[%emt 0:00:01]} h6 {[%emt 0:01:25]} 25. Qd3 {[%emt 0:02:38]} Qc6 {[%emt 0:04:13]} 26. Qc4 {[%emt 0:00:35]} Qxc4 {[%emt 0:00:48]} 27. bxc4 {[%emt 0:00:01]} d3 {[%emt 0:03:25]} 28. Kf2 {[%emt 0:00:11]} Rd4 {[%emt 0:00:29]} 29. Ke3 {[%emt 0:00:27]} Rxc4 {[%emt 0:00:10]} 30. Rxd3 {[%emt 0:00:23]} Ra4 {[%emt 0:02:38]} 31. Rd2 {[%emt 0:00:07]} Kf8 {[%emt 0:00:46]} 32. Kd3 {[%emt 0:00:37]} Ke7 {[%emt 0:01:48]} 33. Kc3 {[%emt 0:00:15]} Ra6 {[%emt 0:01:43]} 34. Rb2 {[%emt 0:02:22]} Rc6+ {[%emt 0:00:37]} 35. Kd4 {[%emt 0:00:23]} b6 {[%emt 0:00:36]} 36. Kd5 {[%emt 0:00:09]} Rc5+ {[%emt 0:01:08]} 1/2-1/2

[Event "Romanian-ch Youth Girls U12 2024"]
[Site "Eforie Nord"]
[Date "2024.04.14"]
[Round "4.2"]
[White "Sunea, Sara Maria"]
[Black "Zamfirache, Amalia-Maria"]
[Result "1/2-1/2"]
[ECO "B12"]
[WhiteElo "1798"]
[BlackElo "1725"]
[Annotator "NA RC"]
[PlyCount "76"]
[EventDate "2024.04.10"]
[EventType "swiss"]
[EventCountry "ROU"]
[SourceTitle "playchess.com"]
[Source "ChessBase"]
[SourceQuality "1"]
[TimeControl "5400+30"]

1. e4 {[%emt 0:00:03]} c6 {[%emt 0:00:13]} 2. d4 {[%emt 0:00:05]} d5 {[%emt 0:00:12]} 3. e5 {[%emt 0:00:05]} c5 {[%emt 0:00:59]} 4. Nf3 {[%emt 0:00:30]} Nc6 {[%emt 0:00:38]} 5. dxc5 {[%emt 0:08:10]} Bg4 {[%emt 0:02:33]} 6. Be2 {[%emt 0:00:57]} e6 {[%emt 0:00:58]} 7. Bf4 {[%emt 0:06:05]} Bxc5 {[%emt 0:10:09]} 8. O-O {[%emt 0:00:51]} Nge7 {[%emt 0:02:20]} 9. Nbd2 {[%emt 0:02:26]} Ng6 {[%emt 0:03:41]} 10. Bg3 {[%emt 0:00:28]} O-O {[%emt 0:02:38]} 11. Nb3 {[%emt 0:21:59]} Bb6 {[%emt 0:04:43]} 12. Re1 {[%emt 0:01:08]} Rc8 {[%emt 0:10:22]} 13. Nbd4 {[%emt 0:11:11]} Nxd4 {[%emt 0:13:53]} 14. Nxd4 {[%emt 0:00:23]} Bxd4 {[%emt 0:04:11]} 15. Qxd4 {[%emt 0:00:17]} Bxe2 {[%emt 0:00:08]} 16. Rxe2 {[%emt 0:00:03]} b6 {[%emt 0:00:34]} 17. a4 {[%emt 0:09:01]} Ne7 {[%emt 0:03:26]} 18. b3 {[%emt 0:04:47]} Nf5 {[%emt 0:05:16]} 19. Qd2 {[%emt 0:00:36]} Nxg3 {[%emt 0:00:39]} 20. hxg3 {[%emt 0:00:09]} Qc7 {[%emt 0:01:26]} 21. Rd1 {[%emt 0:05:34]} Qc5 {[%emt 0:04:07]} 22. g4 {[%emt 0:04:00]} Rc7 {[%emt 0:01:58]} 23. Qg5 {[%emt 0:04:05]} Qe7 {[%emt 0:01:03]} 24. Qxe7 {[%emt 0:01:10]} Rxe7 {[%emt 0:00:09]} 25. Kf1 {[%emt 0:00:25]} Rc8 {[%emt 0:00:09]} 26. Ke1 {[%emt 0:00:44]} Rec7 {[%emt 0:00:15]} 27. Rdd2 {[%emt 0:00:07]} Kf8 {[%emt 0:00:18]} 28. Kd1 {[%emt 0:00:10]} Rc3 {[%emt 0:00:14]} 29. Kc1 {[%emt 0:01:26]} Rxb3 {[%emt 0:02:25]} 30. Rd4 {[%emt 0:01:11]} Rbc3 {[%emt 0:00:17]} 31. Kb2 {[%emt 0:00:20]} R3c4 {[%emt 0:00:54]} 32. Red2 {[%emt 0:01:03]} Ke7 {[%emt 0:00:19]} 33. f3 {[%emt 0:02:48]} R8c5 {[%emt 0:01:42]} 34. Rxc4 {[%emt 0:02:16]} dxc4 {[%emt 0:01:50]} 35. Kc3 {[%emt 0:00:19]} Rxe5 {[%emt 0:00:32]} 36. Kxc4 {[%emt 0:00:00]} Rc5+ {[%emt 0:00:28]} 37. Kb3 {[%emt 0:00:53]} Kf6 {[%emt 0:02:24]} 38. Rd7 {[%emt 0:01:05]} Ra5 {[%emt 0:21:27]} 1/2-1/2